bitfinex-derivatives/quotes_SOLF0:USTF0_20251117
["timestamp","ask_amount","ask_price","bid_price","bid_amount"]
[1763391491720,3.25,140.11,139.91,31.75042831]
[1763391491914,3.25,140.11,139.99,6.4347]
[1763391492117,3.25,140.11,139.95,31.75042831]
[1763391492415,32.99344083,140.18,139.95,6.4366]
[1763391492416,3.25,140.03,139.95,6.4366]
[1763391492615,3.25,140.08,139.92,40.0]
[1763391492818,3.25,140.08,139.91,31.75042831]
[1763391493115,3.25,140.04,139.91,31.75042831]
[1763391493416,0.04795018,139.99,139.91,31.75042831]
[1763391494705,0.04795018,139.99,139.95,6.4363]
[1763391494906,0.04795018,139.99,139.91,31.75042831]
[1763391495214,0.04795018,139.99,139.97,6.4354]
[1763391495514,0.04795018,139.99,139.92,62.0]
[1763391495711,3.25,140.1,139.95,31.75042831]
[1763391495905,3.25,140.1,139.98,31.75042831]
[1763391496307,31.75042831,140.19,139.98,31.75042831]
[1763391496509,3.27,140.14,140.02,31.75042831]
[1763391496708,0.05227875,140.09,140.07,0.0500763]
[1763391497011,0.04776341,140.09,140.07,0.0500763]
[1763391499020,0.04776341,140.09,140.07,6.4808763]
[1763391499217,3.27,140.22,140.07,1.4700763]
[1763391499418,3.27,140.22,140.07,62.0]
[1763391499716,3.27,140.22,140.11,6.4289]
[1763391500121,0.05483156,140.18,140.08,39.96]
[1763391500314,3.27,140.26,140.1,31.75042831]
[1763391500510,0.05107075,140.14,140.12,0.04676367]
[1763391500714,3.27,140.26,140.1,31.75042831]
[1763391501820,0.05493336,140.19,140.17,0.0466429]
[1763391502116,0.04671989,140.19,140.17,0.04954772]
[1763391504327,11.82063041,140.4,140.17,1.46954772]
[1763391504328,3.27,140.29,140.17,1.46954772]
[1763391504523,3.27,140.29,140.19,11.82063041]
[1763391504821,3.27,140.29,140.19,51.72063041]
[1763391505224,3.27,140.34,140.23,0.04511627]
[1763391505425,3.27,140.42,140.25,11.82063041]
[1763391505624,0.0501452,140.29,140.27,0.05295703]
[1763391505924,0.05058047,140.29,140.27,0.04705806]
[1763391506316,3.32058047,140.29,140.27,0.04705806]
[1763391506522,0.05058047,140.29,140.27,0.04705806]
[1763391508723,3.22058047,140.29,140.27,0.04705806]
[1763391509427,0.05058047,140.29,140.27,0.04705806]
[1763391509926,3.22058047,140.29,140.27,0.04705806]
[1763391510131,0.05058047,140.29,140.27,0.04705806]
[1763391510930,3.22058047,140.29,140.27,0.04705806]
[1763391511226,3.22058047,140.29,140.19,18.24593041]
[1763391511432,3.22058047,140.29,140.15,39.86]
[1763391511433,3.17,140.29,140.16,11.82063041]
[1763391511617,3.17,140.29,140.14,11.82063041]
[1763391511923,3.17,140.2,140.09,11.82063041]
[1763391512126,0.04721566,140.16,140.13,0.04537521]
[1763391512324,3.17,140.29,140.15,11.82063041]
[1763391512531,3.17,140.29,140.18,11.82063041]
[1763391512926,3.17,140.29,140.19,6.4255]
[1763391513126,3.17,140.29,140.18,11.82063041]
[1763391513630,3.21557589,140.25,140.22,0.04536068]
[1763391513821,3.22014862,140.25,140.22,0.0513177]
[1763391515321,3.22014862,140.25,140.12,11.82063041]
[1763391515522,3.17,140.25,140.12,11.82063041]
[1763391515717,3.17,140.25,140.09,39.86]
[1763391515718,9.5955,140.2,140.08,11.82063041]
[1763391515927,3.17,140.2,140.11,11.82063041]
[1763391516325,0.04982146,140.17,140.14,0.05091177]
[1763391518425,3.17,140.28,140.14,13.29154218]
[1763391518620,3.17,140.25,140.14,18.24813041]
[1763391519028,3.17,140.25,140.14,11.82063041]
[1763391519224,3.17,140.25,140.06,62.0]
[1763391519423,11.82063041,140.28,140.06,62.0]
[1763391519424,0.04574426,140.17,140.14,0.04582288]
[1763391519633,3.17,140.16,140.14,0.04894651]
[1763391520140,0.05500904,140.17,140.14,0.04894651]
[1763391520527,3.22500904,140.17,140.14,0.04894651]
[1763391520724,3.22500904,140.17,140.05,11.82063041]
[1763391521036,3.17,140.17,140.07,6.79680201]
[1763391521731,0.04988681,140.13,140.11,0.04961038]
[1763391521938,3.17,140.21,140.11,6.84408063]
[1763391522137,3.17,140.21,140.11,6.79680201]
[1763391522340,3.17,140.21,140.13,6.4281]
[1763391522535,3.17,140.21,140.11,6.79680201]
[1763391522935,0.04918294,140.17,140.15,0.05486195]
[1763391523738,3.21918294,140.17,140.0,6.79680201]
[1763391523939,3.17,140.17,140.07,6.4308]
[1763391524142,3.17,140.17,140.06,6.79680201]
[1763391524540,3.17,140.15,140.06,6.79680201]
[1763391524835,0.04895561,140.12,140.09,0.05225337]
[1763391525033,0.04895561,140.12,140.09,6.48225337]
[1763391525237,3.17,140.19,140.09,6.84905538]
[1763391525442,3.17,140.19,140.09,6.79680201]
[1763391525642,9.5962,140.18,140.09,13.22670201]
[1763391525940,3.17,140.18,140.06,6.79680201]
[1763391526137,3.17,140.16,140.07,6.4309]
[1763391526335,3.2181535,140.13,140.11,0.04998819]
[1763391526529,3.2177875,140.13,140.11,0.05029082]
[1763391526731,0.0477875,140.13,140.11,0.05029082]
[1763391528037,3.2177875,140.13,140.11,0.05029082]
[1763391530533,3.17,140.11,139.93,6.30488869]
[1763391530741,3.17,140.04,139.92,6.79680201]
[1763391530945,3.17,140.04,139.97,6.4355]
[1763391531240,3.17,140.04,139.92,46.65680201]
[1763391531436,3.17,140.08,139.98,6.79680201]
[1763391531832,3.17,140.08,139.99,6.4345]
[1763391532035,3.17,140.08,139.98,6.79680201]
[1763391532332,3.17,140.08,139.99,6.4345]
[1763391532531,0.04846741,140.05,140.02,0.04813069]
[1763391532740,21.20341142,140.17,140.02,0.04813069]
[1763391532741,72.19488285,140.18,140.02,0.04813069]
[1763391533037,6.79680201,140.11,139.95,39.86]
[1763391533240,39.86,140.23,140.01,6.79680201]
[1763391533539,6.79680201,140.24,140.1,6.79680201]
[1763391533733,0.0535342,140.18,140.16,0.05277966]
[1763391533937,0.0535342,140.18,140.16,0.00277966]
[1763391533938,0.05470419,140.18,140.16,0.00277966]
[1763391534749,0.05470419,140.18,140.08,6.79680201]
[1763391534950,3.17,140.2,140.09,6.4299]
[1763391535140,3.17,140.2,140.08,6.79680201]
[1763391535644,0.05101584,140.15,140.13,0.04609488]
[1763391535855,0.0452268,140.15,140.13,0.04609488]
[1763391536040,3.2152268,140.15,140.13,0.04609488]
[1763391536841,3.2152268,140.15,140.05,6.79680201]
[1763391537047,3.17,140.15,140.05,6.79680201]
[1763391537448,3.17,140.15,140.03,39.86]
[1763391537449,3.31,140.19,140.08,6.79680201]
[1763391537644,3.31,140.19,140.1,6.4294]
[1763391537839,0.05475455,140.16,140.13,0.04643286]
[1763391538146,3.36347078,140.16,140.13,0.05446361]
[1763391538341,0.05347078,140.16,140.13,0.05446361]
[1763391538743,0.05347078,140.16,140.14,6.4277]
[1763391539438,0.05347078,140.16,140.13,0.05446361]
[1763391540444,3.31,140.26,140.14,6.79680201]
[1763391540949,3.31,140.2,140.11,6.79680201]
[1763391541251,3.31,140.2,140.08,6.79680201]
[1763391541552,3.31,140.18,140.08,6.79680201]
[1763391541747,3.31,140.14,140.13,0.05259672]
[1763391541949,0.05139081,140.15,140.13,0.05259672]
[1763391542665,3.36139081,140.15,140.13,0.05259672]
[1763391543255,9.78899081,140.15,140.13,0.05259672]
[1763391543443,3.31,140.14,140.13,0.05259672]
[1763391544462,3.31,140.13,140.04,6.79680201]
[1763391544657,6.79680201,140.23,140.04,6.79680201]
[1763391544658,3.31,140.18,140.07,6.79680201]
[1763391544949,3.31,140.18,140.07,13.22770201]
[1763391545251,3.31,140.18,140.07,6.79680201]
[1763391545451,3.31,140.18,140.11,0.04825726]
[1763391545452,0.04894712,140.14,140.11,0.04825726]
[1763391545952,3.31,140.26,140.13,6.79680201]
[1763391546152,3.31,140.26,140.17,6.79680201]
[1763391546349,3.31,140.26,140.15,6.79680201]
[1763391546656,3.31,140.23,140.12,6.79680201]
[1763391546855,3.31,140.18,140.16,0.04921906]
[1763391547055,3.35951157,140.18,140.06,6.30488869]
[1763391547250,3.35951157,140.18,140.04,21.90939175]
[1763391547251,3.31,140.16,140.1,6.4295]
[1763391547651,3.31,140.23,140.11,6.79680201]
[1763391547858,3.31,140.21,140.14,6.4277]
[1763391548053,0.05050117,140.19,140.16,0.05437783]
[1763391548258,3.31,140.18,140.16,0.05437783]
[1763391548658,3.36050117,140.19,140.16,0.05437783]
[1763391549356,3.31,140.17,140.16,0.00437783]
[1763391549549,3.31,140.17,140.02,6.35398811]
[1763391549750,3.31,140.17,140.05,6.79680201]
[1763391549952,6.4281,140.14,140.05,6.79680201]
[1763391550259,3.31,140.17,140.05,6.79680201]
[1763391550464,0.04675361,140.12,140.1,6.47722796]
[1763391550666,0.05115801,140.12,140.1,0.04782796]
[1763391550962,12.8442,140.27,140.11,8.21680201]
[1763391550963,3.31,140.21,140.11,8.21680201]
[1763391551256,6.4243,140.22,140.06,6.35398811]
[1763391551257,3.31,140.25,140.14,6.79680201]
[1763391551461,3.31,140.25,140.17,6.79680201]
[1763391551961,0.0503011,140.22,140.2,0.05245864]
[1763391553964,3.3603011,140.22,140.2,0.05245864]
[1763391554161,3.3603011,140.22,140.14,6.79680201]
[1763391554162,9.7847011,140.22,140.14,6.79680201]
[1763391554461,3.31,140.22,140.08,6.35398811]
[1763391554656,6.4271,140.16,140.07,6.79680201]
[1763391554964,3.31,140.17,140.06,6.79680201]
[1763391555155,0.05220221,140.13,140.1,0.05114608]
[1763391556666,3.29,140.22,140.12,6.79680201]
[1763391557064,3.29,140.22,140.13,6.4281]
[1763391557264,3.29,140.22,140.12,6.79680201]
[1763391557465,3.29,140.22,140.15,6.79680201]
[1763391557763,0.05419458,140.2,140.17,0.0530092]
[1763391557962,3.34419458,140.2,140.17,0.0530092]
[1763391558467,0.05419458,140.2,140.17,0.0530092]
[1763391559563,3.34419458,140.2,140.17,0.0530092]
[1763391559755,3.34419458,140.2,140.08,6.35398811]
[1763391560062,3.29,140.2,140.09,6.79680201]
[1763391560256,3.29,140.2,140.07,6.79680201]
[1763391560457,3.29,140.2,140.08,6.4303]
[1763391560458,6.4258,140.19,140.08,6.4303]
[1763391560767,0.04609404,140.15,140.12,0.05378043]
[1763391560965,3.33609404,140.15,140.12,0.05378043]
[1763391561461,0.04609404,140.15,140.12,0.05378043]
[1763391561960,3.29,140.24,140.13,8.21680201]
[1763391562268,3.29,140.28,140.19,6.79680201]
[1763391562858,3.29,140.28,140.22,6.79680201]
[1763391563167,3.33744086,140.26,140.15,6.3704552]
[1763391563472,3.29,140.26,140.16,6.79680201]
[1763391563662,6.4213,140.29,140.19,6.79680201]
[1763391564262,0.05107003,140.25,140.23,0.05255862]
[1763391564461,0.04998202,140.25,140.23,0.05255862]
[1763391565464,0.04998202,140.25,140.23,6.47615862]
[1763391565662,0.04998202,140.25,140.23,0.05255862]
[1763391566877,3.33998202,140.25,140.23,0.05255862]
[1763391567375,0.04998202,140.25,140.23,0.05255862]
[1763391568173,3.15998202,140.25,140.23,0.05255862]
[1763391569177,0.04998202,140.25,140.23,0.05255862]
[1763391570868,3.11,140.42,140.24,15.01360402]
[1763391571077,3.11,140.41,140.28,6.79680201]
[1763391571473,3.11,140.4,140.28,6.79680201]
[1763391571767,142.43105526,140.44,140.25,6.79680201]
[1763391571768,3.11,140.34,140.25,6.79680201]
[1763391572876,3.11,140.34,140.17,99.9634]
[1763391572877,3.11,140.3,140.28,0.05224073]
[1763391573182,3.15588852,140.3,140.28,0.05436875]
[1763391573374,3.11,140.29,140.28,0.05436875]
[1763391574181,3.11,140.29,140.17,6.79680201]
[1763391574182,3.11,140.26,140.17,6.79680201]
[1763391574578,3.11,140.26,140.14,6.79680201]
[1763391575084,0.05096258,140.21,140.14,6.79680201]
[1763391576783,9.58586258,140.21,140.13,6.4281]
[1763391576979,0.04788599,140.18,140.12,6.79680201]
[1763391578584,0.04788599,140.18,140.09,6.79680201]
[1763391578791,0.05379718,140.15,140.09,6.79680201]
[1763391579389,0.05379718,140.15,140.12,6.79680201]
[1763391579683,3.11,140.25,140.12,6.79680201]
[1763391579881,3.11,140.24,140.15,6.79680201]
[1763391580081,3.11,140.24,140.09,13.16725721]
[1763391580286,3.11,140.22,140.12,6.4286]
[1763391580479,3.11,140.22,140.12,13.22540201]
[1763391580783,0.05496353,140.18,140.16,0.04590445]
[1763391581180,3.16496353,140.18,140.16,0.04590445]
[1763391581984,0.05496353,140.18,140.16,0.04590445]
[1763391584684,3.16496353,140.18,140.16,0.04590445]
[1763391585088,3.16496353,140.18,140.06,11.82372333]
[1763391585397,3.11,140.17,140.06,11.82372333]
[1763391585804,9.5389,140.12,140.03,11.82372333]
[1763391586001,0.04851559,140.09,140.06,0.02078493]
[1763391587093,0.04851559,140.09,140.06,6.45218493]
[1763391587391,0.04851559,140.09,140.06,0.02078493]
[1763391588390,3.15851559,140.09,140.06,0.02078493]
[1763391588995,6.4307,140.08,139.98,11.82372333]
[1763391589400,3.11,140.09,139.98,11.82372333]
[1763391589783,24.67402333,140.2,140.01,11.82372333]
[1763391589995,139.7284,140.23,140.01,11.82372333]
[1763391589996,0.05422918,140.12,140.01,11.82372333]
[1763391590195,0.05350787,140.08,140.04,11.82372333]
[1763391590496,3.11,140.17,140.07,11.82372333]
[1763391591191,3.11,140.17,140.08,6.4304]
[1763391591399,0.05035583,140.14,140.11,0.05350787]
[1763391592288,0.05035583,140.14,140.12,6.4285]
[1763391593496,0.05035583,140.14,140.11,0.05350787]
[1763391594397,0.05035583,140.14,140.12,6.4286]
[1763391596496,0.05035583,140.14,140.11,0.05350787]
[1763391597004,0.05035583,140.14,140.12,6.4286]
[1763391598299,0.05035583,140.14,140.11,0.05350787]
[1763391598702,0.05035583,140.14,140.12,11.82372333]
[1763391599597,3.11,140.21,140.12,11.82372333]
[1763391600200,3.38,140.27,140.12,11.82372333]
[1763391600595,3.38,140.26,140.17,6.4262]
[1763391600798,0.04958303,140.21,140.18,0.0522177]
[1763391601399,3.38,140.39,140.19,1.42]
[1763391601594,3.38,140.39,140.18,11.87594103]
[1763391601595,3.38,140.33,140.18,11.87594103]
[1763391601799,3.38,140.33,140.18,11.82372333]
[1763391601994,3.38,140.33,140.21,11.82372333]
[1763391602196,0.04763496,140.28,140.26,6.46736214]
[1763391602502,0.05232959,140.28,140.26,0.04506214]
[1763391602701,1.24037639,140.44,140.26,0.04506214]
[1763391602702,3.38,140.37,140.29,6.4207]
[1763391602907,3.38,140.37,140.27,11.82372333]
[1763391603199,6.4185,140.35,140.26,11.82372333]
[1763391603406,3.38,140.34,140.23,51.60372333]
[1763391603603,3.38,140.34,140.19,6.3704552]
[1763391603800,3.38,140.26,140.15,11.82372333]
[1763391604105,3.38,140.26,140.1,39.78]
[1763391604405,3.38,140.26,140.11,11.82372333]
[1763391604798,0.04805878,140.2,140.17,0.04744837]
[1763391605003,0.04805878,140.2,140.17,0.05059344]
[1763391605004,0.04777239,140.2,140.17,0.05059344]
[1763391605400,8.67323918,140.37,140.18,41.2]
[1763391605401,3.38,140.37,140.18,41.2]
[1763391605700,3.38,140.37,140.22,11.82372333]
[1763391605899,3.38,140.36,140.25,11.82372333]
[1763391606397,0.04850206,140.32,140.29,0.04979833]
[1763391606594,0.04850206,140.32,140.3,6.4202]
[1763391607507,3.38,140.41,140.29,11.87352166]
[1763391607804,3.38,140.41,140.29,11.82372333]
[1763391608103,3.38,140.41,140.32,11.82372333]
[1763391608305,0.05494232,140.38,140.35,0.05415526]
[1763391608496,0.0505493,140.38,140.35,11.82372333]
[1763391608701,0.0505493,140.38,140.35,0.04906911]
[1763391608905,0.0505493,140.38,140.36,6.4174]
[1763391609111,0.0505493,140.38,140.35,0.04906911]
[1763391609305,3.38,140.52,140.37,11.82372333]
[1763391609514,3.38,140.52,140.33,99.8511]
[1763391609515,3.38,140.52,140.43,6.4146]
[1763391609706,3.38,140.52,140.38,39.76]
[1763391609707,3.38,140.52,140.44,11.82372333]
[1763391610408,3.43077591,140.49,140.35,6.3704552]
[1763391610610,3.38,140.49,140.39,11.82372333]
[1763391610811,3.38,140.49,140.35,39.76]
[1763391611013,3.38,140.49,140.39,11.82372333]
[1763391611218,3.38,140.45,140.35,11.82372333]
[1763391611515,0.05210388,140.41,140.39,0.0449276]
[1763391612121,3.43210388,140.41,140.39,0.0449276]
[1763391612305,4.8,140.4,140.29,11.82372333]
[1763391612505,3.38,140.4,140.29,11.82372333]
[1763391612810,3.38,140.39,140.29,11.82372333]
[1763391613114,3.38,140.46,140.33,11.82372333]
[1763391613313,0.04577101,140.41,140.38,0.0505326]
[1763391614018,0.04577101,140.41,140.39,11.82372333]
[1763391614214,3.38,140.51,140.39,11.82372333]
[1763391614412,3.38,140.58,140.42,11.82372333]
[1763391614821,3.38,140.55,140.45,6.4136]
[1763391615113,3.4307449,140.51,140.49,0.04609966]
[1763391615315,3.43099914,140.51,140.49,0.05041366]
[1763391615621,0.05099914,140.51,140.49,0.05041366]
[1763391616410,0.05099914,140.51,140.49,6.46191366]
[1763391616716,3.29,140.5,140.34,6.3704552]
[1763391616909,3.29,140.5,140.4,11.82372333]
[1763391617317,3.29,140.58,140.43,11.82372333]
[1763391617622,3.29,140.58,140.46,11.82372333]
[1763391617823,0.05234006,140.53,140.51,0.04769169]
[1763391618023,3.29,140.5,140.39,11.82372333]
[1763391618621,3.29,140.47,140.36,11.82372333]
[1763391618815,3.29,140.47,140.34,11.82372333]
[1763391619014,3.29,140.47,140.32,39.7]
[1763391619015,0.04499634,140.42,140.39,0.04977731]
[1763391619223,3.29,140.45,140.32,11.82372333]
[1763391619415,0.04990745,140.42,140.39,0.05043397]
[1763391621118,3.33990745,140.42,140.39,0.05043397]
[1763391621317,0.04990745,140.42,140.39,0.05043397]
[1763391621930,3.33990745,140.42,140.39,0.05043397]
[1763391622721,0.04990745,140.42,140.39,0.05043397]
[1763391623129,0.04990745,140.42,140.39,11.8741573]
[1763391623515,0.04990745,140.42,140.39,0.05043397]
[1763391624034,3.33990745,140.42,140.39,0.05043397]
[1763391625126,3.33990745,140.42,140.39,0.00043397]
[1763391627231,3.33990745,140.42,140.28,11.82372333]
[1763391627232,3.29,140.4,140.28,11.82372333]
[1763391627436,3.29,140.4,140.25,11.82372333]
[1763391627732,3.29,140.4,140.23,39.68]
[1763391628130,3.23685671,140.33,140.3,0.05069692]
[1763391628338,3.19,140.4,140.23,39.68]
[1763391628525,0.04749443,140.33,140.3,0.05071171]
[1763391628831,3.23569501,140.33,140.23,39.68]
[1763391629024,3.19,140.29,140.18,11.82372333]
[1763391629429,3.19,140.29,140.11,100.0065]
[1763391629430,3.19,140.37,140.21,11.82372333]
[1763391629630,3.19,140.3,140.18,11.82372333]
[1763391629837,0.0464342,140.25,140.23,0.04994454]
[1763391630030,0.05306753,140.25,140.23,0.04994454]
[1763391632435,3.24306753,140.25,140.23,0.04994454]
[1763391632731,3.24306753,140.25,140.16,11.82372333]
[1763391632927,3.19,140.25,140.16,11.82372333]
[1763391633128,3.19,140.29,140.16,11.82372333]
[1763391633334,3.19,140.28,140.16,11.82372333]
[1763391633636,0.05198008,140.23,140.16,11.82372333]
[1763391633828,0.05198008,140.23,140.19,11.82372333]
[1763391634137,24.65782333,140.38,140.19,11.82372333]
[1763391634138,0.04998859,140.22,140.19,11.82372333]
[1763391634436,0.05089365,140.22,140.19,11.82372333]
[1763391635033,0.05089365,140.22,140.16,11.82372333]
[1763391635236,0.05316425,140.2,140.19,11.82372333]
[1763391635429,3.19,140.32,140.19,11.82372333]
[1763391635629,3.19,140.32,140.13,168.3627552]
[1763391635630,3.19,140.32,140.22,11.82372333]
[1763391636040,3.19,140.32,140.25,6.4228]
[1763391636338,3.24345668,140.3,140.27,0.05279135]
[1763391636533,3.19,140.29,140.27,0.04804066]
[1763391637234,0.05476548,140.3,140.27,0.04804066]
[1763391637443,3.24476548,140.3,140.27,0.04804066]
[1763391637937,3.24476548,140.3,140.19,11.82372333]
[1763391638137,3.19,140.3,140.19,11.82372333]
[1763391638333,3.19,140.29,140.19,11.82372333]
[1763391638635,3.19,140.33,140.22,11.82372333]
[1763391638841,3.19,140.33,140.28,6.4211]
[1763391639036,3.19,140.4,140.25,11.82372333]
[1763391639244,11.82372333,140.44,140.25,11.82372333]
[1763391639245,0.05144895,140.32,140.25,11.82372333]
[1763391639540,0.04606985,140.3,140.25,11.82372333]
[1763391640236,0.04606985,140.3,140.24,11.82372333]
[1763391640433,0.05253598,140.28,140.24,11.82372333]
[1763391640640,0.05253598,140.28,140.26,6.4219]
[1763391640835,3.19,140.34,140.24,11.82372333]
[1763391641035,3.19,140.43,140.24,11.82372333]
[1763391641340,3.19,140.39,140.24,11.82372333]
[1763391641640,6.4176,140.37,140.28,6.4213]
[1763391641837,0.05392338,140.34,140.31,0.04739891]
[1763391642147,3.19,140.33,140.24,11.82372333]
[1763391642339,3.19,140.33,140.21,11.82372333]
[1763391642844,11.82372333,140.38,140.21,11.82372333]
[1763391642845,3.19,140.32,140.21,11.82372333]
[1763391643042,0.04602995,140.28,140.21,11.82372333]
[1763391643348,0.04602995,140.28,140.26,6.4221]
[1763391643546,3.19,140.36,140.27,11.82372333]
[1763391643743,3.19,140.36,140.3,6.4204]
[1763391643944,0.05074726,140.34,140.3,6.4204]
[1763391644246,0.05074726,140.34,140.28,6.4212]
[1763391644439,0.05074726,140.34,140.22,62.0]
[1763391644645,3.23612428,140.29,140.22,11.82372333]
[1763391644842,0.04750506,140.27,140.24,6.4228]
[1763391645143,3.23750506,140.27,140.16,6.78224654]
[1763391645343,0.04704215,140.23,140.17,6.78224654]
[1763391646444,0.04704215,140.23,140.2,6.78224654]
[1763391646650,3.19,140.33,140.2,6.78224654]
[1763391646651,3.19,140.33,140.2,6.83548202]
[1763391646847,3.19,140.38,140.27,6.78224654]
[1763391647046,3.19,140.43,140.3,6.78224654]
[1763391647249,3.19,140.43,140.33,6.78224654]
[1763391647452,3.19,140.43,140.36,6.78224654]
[1763391647750,3.19,140.43,140.29,6.3704552]
[1763391647751,3.23964547,140.39,140.37,0.04569148]
[1763391647947,3.19,140.39,140.24,13.15270174]
[1763391648150,3.19,140.39,140.29,6.78224654]
[1763391648354,3.19,140.44,140.29,6.78224654]
[1763391648649,3.19,140.41,140.29,6.78224654]
[1763391648853,0.05007009,140.36,140.26,6.78224654]
[1763391649049,3.19,140.35,140.26,6.78224654]
[1763391649249,99.7866,140.43,140.23,6.78224654]
[1763391649250,3.24389421,140.32,140.23,6.78224654]
[1763391649551,0.04851489,140.29,140.23,6.78224654]
[1763391650054,0.04851489,140.29,140.2,6.78224654]
[1763391650253,0.05238704,140.26,140.2,6.78224654]
[1763391650856,0.05238704,140.26,140.19,39.68]
[1763391651055,0.05238704,140.26,140.19,46.46224654]
[1763391651650,0.05238704,140.26,140.22,6.78224654]
[1763391651845,0.05238704,140.26,140.23,6.4235]
[1763391652048,0.05238704,140.26,140.25,6.78224654]
[1763391652351,0.05238704,140.26,140.22,6.78224654]
[1763391652959,3.19,140.33,140.25,6.78224654]
[1763391653155,3.19,140.4,140.28,6.78224654]
[1763391653856,3.19,140.4,140.25,6.78224654]
[1763391653857,3.19,140.4,140.31,6.78224654]
[1763391654158,3.19,140.4,140.25,6.78224654]
[1763391654159,3.24205523,140.35,140.33,0.04854807]
[1763391654351,3.23504332,140.35,140.33,0.04570948]
[1763391654548,3.23504332,140.35,140.25,13.20474654]
[1763391654549,3.19,140.34,140.25,13.20474654]
[1763391655360,3.19,140.34,140.25,6.78224654]
[1763391655556,0.04906071,140.31,140.28,0.02150856]
[1763391655854,3.23906071,140.31,140.28,0.02150856]
[1763391656266,0.04906071,140.31,140.28,0.02150856]
[1763391656564,0.04906071,140.31,140.28,6.8037551]
[1763391656756,0.04906071,140.31,140.29,6.4205]
[1763391657261,0.04906071,140.31,140.28,6.8037551]
[1763391657561,0.04906071,140.31,140.28,0.02150856]
[1763391658459,3.19906071,140.31,140.28,0.02150856]
[1763391659264,0.04906071,140.31,140.28,0.02150856]
[1763391659647,0.04906071,140.31,140.28,6.8037551]
[1763391660363,3.15,140.42,140.29,1.42]
[1763391660560,3.15,140.42,140.31,6.78224654]
[1763391660765,3.15,140.41,140.26,6.3122428]
[1763391660952,3.15,140.38,140.18,6.3122428]
[1763391661158,3.15,140.35,140.16,6.3122428]
[1763391661460,3.15,140.26,140.24,0.04636772]
[1763391661657,3.20140154,140.26,140.24,0.05266187]
[1763391662966,0.05140154,140.26,140.24,0.05266187]
[1763391663349,9.5731,140.25,140.15,6.78224654]
[1763391663657,6.78224654,140.31,140.14,6.35511435]
[1763391663658,3.15,140.31,140.14,6.35511435]
[1763391663861,99.8429,140.35,140.16,6.78224654]
[1763391663862,6.4227,140.26,140.16,6.78224654]
[1763391664072,3.15,140.3,140.19,6.78224654]
[1763391664265,3.15,140.34,140.25,6.78224654]
[1763391664570,0.05401888,140.31,140.25,6.78224654]
[1763391664766,3.15,140.39,140.31,6.78224654]
[1763391664969,0.04624774,140.36,140.31,6.78224654]
[1763391665167,3.15,140.43,140.34,6.78224654]
[1763391665366,3.15,140.43,140.32,6.78224654]
[1763391665673,3.15,140.41,140.29,6.78224654]
[1763391666078,3.15,140.4,140.29,6.78224654]
[1763391666367,0.04562793,140.36,140.33,0.04584952]
[1763391666772,3.19562793,140.36,140.33,0.04584952]
[1763391667173,3.19562793,140.36,140.23,24.54694929]
[1763391667372,3.15,140.36,140.23,18.19183494]
[1763391667569,18.19183494,140.42,140.21,64.22694929]
[1763391667570,3.15,140.34,140.21,64.22694929]
[1763391667873,3.15,140.39,140.23,6.35511435]
[1763391668069,9.5692,140.33,140.22,6.35511435]
[1763391668270,0.05124417,140.29,140.22,6.35511435]
[1763391668678,3.20124417,140.29,140.21,39.68]
[1763391669069,3.20124417,140.29,140.17,6.35511435]
[1763391669271,0.04663911,140.24,140.17,6.35511435]
[1763391669770,3.15,140.34,140.2,6.35511435]
[1763391669979,3.15,140.34,140.23,18.19183494]
[1763391670163,3.15,140.34,140.23,24.54694929]
[1763391670368,3.15,140.34,140.23,18.19183494]
[1763391670772,3.15,140.34,140.19,71.04519175]
[1763391670773,0.05401888,140.3,140.27,0.05277375]
[1763391671078,3.15,140.29,140.19,18.19183494]
[1763391671378,3.15,140.35,140.2,6.35511435]
[1763391671577,3.15,140.35,140.22,6.35511435]
[1763391671775,3.15,140.35,140.23,24.54694929]
[1763391672084,0.04514367,140.3,140.25,6.35511435]
[1763391672371,0.04514367,140.3,140.23,27.23702669]
[1763391672372,0.04514367,140.3,140.24,6.35511435]
[1763391672566,0.04514367,140.3,140.22,6.35511435]
[1763391672764,0.04514367,140.3,140.21,6.35511435]
[1763391672973,0.04514367,140.3,140.17,13.47729738]